[Event "*** Biggest EVER Titled Tuesday"]
[Site "Chess.com"]
[Date "2018.04.17"]
[Round "2"]
[White "djogrodek1"]
[Black "Vugar_Manafov"]
[Result "1-0"]
[WhiteElo "2447"]
[BlackElo "2290"]
[TimeControl "180+2"]
[EndTime "13:25:03 PDT"]
[Termination "djogrodek1 won by checkmate"]

1. e4 {[%clk 0:03:00.9]} 1... d6 {[%clk 0:02:58.6]} 2. d4 {[%clk 0:03:01.2]}
2... g6 {[%clk 0:02:57.5]} 3. Nc3 {[%clk 0:03:02.5]} 3... Bg7 {[%clk 0:02:56]}
4. h3 {[%clk 0:03:02.7]} 4... Nc6 {[%clk 0:02:53.5]} 5. Be3 {[%clk 0:02:53.4]}
5... e5 {[%clk 0:02:52.3]} 6. Nge2 {[%clk 0:02:52.5]} 6... Nge7 {[%clk
0:02:50.7]} 7. Qd2 {[%clk 0:02:45.2]} 7... O-O {[%clk 0:02:49.2]} 8. d5 {[%clk
0:02:40.1]} 8... Na5 {[%clk 0:02:40.1]} 9. Ng3 {[%clk 0:02:32.2]} 9... f5 {[%clk
0:02:38.9]} 10. Bh6 {[%clk 0:02:32.9]} 10... f4 {[%clk 0:02:37]} 11. Bxg7 {[%clk
0:02:33.9]} 11... Kxg7 {[%clk 0:02:38.9]} 12. Nge2 {[%clk 0:02:35.8]} 12... Nc4
{[%clk 0:02:36.1]} 13. Qc1 {[%clk 0:02:36.9]} 13... c6 {[%clk 0:02:31]} 14. b3
{[%clk 0:02:35.9]} 14... Nb6 {[%clk 0:02:31.9]} 15. dxc6 {[%clk 0:02:35.3]}
15... bxc6 {[%clk 0:02:31.4]} 16. g3 {[%clk 0:02:36.8]} 16... f3 {[%clk
0:02:30.5]} 17. Ng1 {[%clk 0:02:36.3]} 17... d5 {[%clk 0:02:30.7]} 18. h4 {[%clk
0:02:36.8]} 18... h5 {[%clk 0:02:24.3]} 19. Bh3 {[%clk 0:02:36.3]} 19... d4
{[%clk 0:02:18.2]} 20. Nb1 {[%clk 0:02:32.7]} 20... c5 {[%clk 0:02:16.3]} 21.
Nd2 {[%clk 0:02:29.4]} 21... Ba6 {[%clk 0:02:12.4]} 22. Ngxf3 {[%clk 0:02:28.9]}
22... Qd6 {[%clk 0:02:06.9]} 23. Bf1 {[%clk 0:02:24.5]} 23... Bxf1 {[%clk
0:01:55.2]} 24. Kxf1 {[%clk 0:02:26.2]} 24... Rf6 {[%clk 0:01:46.9]} 25. Kg2
{[%clk 0:02:25.8]} 25... Raf8 {[%clk 0:01:47.9]} 26. Rf1 {[%clk 0:02:27.2]}
26... Ng8 {[%clk 0:01:30.9]} 27. a4 {[%clk 0:02:21.9]} 27... Nh6 {[%clk
0:01:27.5]} 28. a5 {[%clk 0:02:23]} 28... Nd7 {[%clk 0:01:23.5]} 29. Nc4 {[%clk
0:02:20.9]} 29... Qe7 {[%clk 0:01:21.8]} 30. Ng5 {[%clk 0:02:11.5]} 30... Nf7
{[%clk 0:01:17.1]} 31. Nxf7 {[%clk 0:02:10.9]} 31... Qxf7 {[%clk 0:01:18.7]} 32.
Qd2 {[%clk 0:02:10.9]} 32... Rf3 {[%clk 0:01:14.2]} 33. Rae1 {[%clk 0:01:57.2]}
33... Qe6 {[%clk 0:01:08.5]} 34. Qg5 {[%clk 0:01:50.6]} 34... R8f7 {[%clk
0:01:01.6]} 35. Re2 {[%clk 0:01:50.8]} 35... a6 {[%clk 0:00:56.9]} 36. Rb1
{[%clk 0:01:49.5]} 36... R7f6 {[%clk 0:00:53.1]} 37. Rf1 {[%clk 0:01:38]} 37...
Rf7 {[%clk 0:00:50.6]} 38. Rb1 {[%clk 0:01:36.9]} 38... Rc3 {[%clk 0:00:49.1]}
39. Rd1 {[%clk 0:01:26.3]} 39... Rxc4 {[%clk 0:00:34.3]} 40. bxc4 {[%clk
0:01:28.1]} 40... Qxc4 {[%clk 0:00:35.9]} 41. Qd2 {[%clk 0:01:25.7]} 41... Nf6
{[%clk 0:00:33.5]} 42. Qd3 {[%clk 0:01:25.8]} 42... Qe6 {[%clk 0:00:34.9]} 43.
f3 {[%clk 0:01:21.7]} 43... c4 {[%clk 0:00:36]} 44. Qd2 {[%clk 0:01:22.7]} 44...
Nd7 {[%clk 0:00:35.9]} 45. Rb1 {[%clk 0:01:21.7]} 45... c3 {[%clk 0:00:30.6]}
46. Qd3 {[%clk 0:01:21.8]} 46... Nc5 {[%clk 0:00:31.7]} 47. Qd1 {[%clk
0:01:18.9]} 47... Qc4 {[%clk 0:00:32.2]} 48. Rb6 {[%clk 0:01:14.4]} 48... d3
{[%clk 0:00:28.7]} 49. cxd3 {[%clk 0:01:14.1]} 49... Nxd3 {[%clk 0:00:30.6]} 50.
Rc2 {[%clk 0:00:49.4]} 50... Rd7 {[%clk 0:00:28.1]} 51. Qe2 {[%clk 0:00:43.2]}
51... Qc5 {[%clk 0:00:21.4]} 52. Rb3 {[%clk 0:00:39.9]} 52... Qd4 {[%clk
0:00:12.6]} 53. Rcxc3 {[%clk 0:00:33]} 53... Nc5 {[%clk 0:00:12.1]} 54. Ra3
{[%clk 0:00:32.3]} 54... Na4 {[%clk 0:00:11.5]} 55. Rd3 {[%clk 0:00:31.2]} 55...
Nc5 {[%clk 0:00:07.7]} 56. Rxd4 {[%clk 0:00:31.8]} 56... exd4 {[%clk 0:00:09.3]}
57. Qc4 {[%clk 0:00:29.3]} 57... d3 {[%clk 0:00:11.1]} 58. Qxc5 {[%clk
0:00:29.7]} 58... d2 {[%clk 0:00:11.6]} 59. Ra1 {[%clk 0:00:28.2]} 59... d1=Q
{[%clk 0:00:13.1]} 60. Rxd1 {[%clk 0:00:29.6]} 60... Rxd1 {[%clk 0:00:15]} 61.
Qa7+ {[%clk 0:00:31.5]} 61... Kh6 {[%clk 0:00:15.4]} 62. Qxa6 {[%clk 0:00:33.4]}
62... Rd2+ {[%clk 0:00:16.8]} 63. Kf1 {[%clk 0:00:34.7]} 63... Ra2 {[%clk
0:00:18]} 64. Qa8 {[%clk 0:00:31.4]} 64... Kh7 {[%clk 0:00:18.9]} 65. a6 {[%clk
0:00:32.3]} 65... Ra1+ {[%clk 0:00:18.3]} 66. Ke2 {[%clk 0:00:32.7]} 66... Ra2+
{[%clk 0:00:20.2]} 67. Ke3 {[%clk 0:00:34.1]} 67... Ra3+ {[%clk 0:00:21.5]} 68.
Kf4 {[%clk 0:00:35.6]} 68... g5+ {[%clk 0:00:21.7]} 69. hxg5 {[%clk 0:00:36.5]}
69... h4 {[%clk 0:00:21.1]} 70. gxh4 {[%clk 0:00:38.4]} 70... Ra5 {[%clk
0:00:22]} 71. Qb7+ {[%clk 0:00:39.8]} 71... Kg6 {[%clk 0:00:22.9]} 72. Qb6+
{[%clk 0:00:41.2]} 72... Kh5 {[%clk 0:00:23.1]} 73. Qh6# {[%clk 0:00:42.1]} 1-0

[Event "*** Biggest EVER Titled Tuesday"]
[Site "Chess.com"]
[Date "2018.04.17"]
[Round "2"]
[White "GoingKronos"]
[Black "almatyonelove"]
[Result "1/2-1/2"]
[WhiteElo "2378"]
[BlackElo "2432"]
[TimeControl "180+2"]
[EndTime "13:25:13 PDT"]
[Termination "Game drawn by repetition"]

1. d4 {[%clk 0:02:59.3]} 1... Nf6 {[%clk 0:02:59.4]} 2. c4 {[%clk 0:02:58.6]}
2... e6 {[%clk 0:03:00.8]} 3. Nf3 {[%clk 0:02:59.4]} 3... a6 {[%clk 0:03:00.4]}
4. Nc3 {[%clk 0:02:56.6]} 4... d5 {[%clk 0:03:01.2]} 5. cxd5 {[%clk 0:02:55.5]}
5... exd5 {[%clk 0:03:01.6]} 6. Bg5 {[%clk 0:02:56.4]} 6... Be6 {[%clk
0:02:58.1]} 7. e3 {[%clk 0:02:57]} 7... h6 {[%clk 0:02:58.2]} 8. Bh4 {[%clk
0:02:57.5]} 8... g5 {[%clk 0:02:53.5]} 9. Bg3 {[%clk 0:02:58.1]} 9... Nh5 {[%clk
0:02:51.2]} 10. Qb3 {[%clk 0:02:50.5]} 10... Nxg3 {[%clk 0:02:34.6]} 11. hxg3
{[%clk 0:02:50]} 11... Ra7 {[%clk 0:02:34.9]} 12. Bd3 {[%clk 0:02:43.3]} 12...
c6 {[%clk 0:02:31.5]} 13. Ne5 {[%clk 0:02:21]} 13... Bd6 {[%clk 0:02:27.5]} 14.
f4 {[%clk 0:02:21.4]} 14... Nd7 {[%clk 0:02:26.3]} 15. f5 {[%clk 0:02:08.1]}
15... Bxe5 {[%clk 0:02:19.9]} 16. dxe5 {[%clk 0:01:58.2]} 16... Nxe5 {[%clk
0:02:21.8]} 17. fxe6 {[%clk 0:01:39.4]} 17... Nxd3+ {[%clk 0:02:22]} 18. Ke2
{[%clk 0:01:40.5]} 18... Ne5 {[%clk 0:02:17.4]} 19. exf7+ {[%clk 0:01:40.9]}
19... Kxf7 {[%clk 0:02:10.3]} 20. Raf1+ {[%clk 0:01:41.5]} 20... Kg7 {[%clk
0:02:10.9]} 21. Rf5 {[%clk 0:01:39.8]} 21... Nc4 {[%clk 0:02:04]} 22. Nd1 {[%clk
0:01:28.5]} 22... Qa5 {[%clk 0:01:40.8]} 23. Qd3 {[%clk 0:01:24.6]} 23... Qb5
{[%clk 0:00:21.4]} 24. a4 {[%clk 0:01:16.8]} 24... Qc5 {[%clk 0:00:16.8]} 25.
Qc3+ {[%clk 0:01:13.9]} 25... d4 {[%clk 0:00:16.8]} 26. Rxc5 {[%clk 0:01:11.2]}
26... dxc3 {[%clk 0:00:18.1]} 27. Rxc4 {[%clk 0:01:12.3]} 27... cxb2 {[%clk
0:00:18.8]} 28. Nxb2 {[%clk 0:01:13.2]} 28... Re8 {[%clk 0:00:19.5]} 29. Nd3
{[%clk 0:01:04.8]} 29... Re6 {[%clk 0:00:18.9]} 30. Nc5 {[%clk 0:01:00.4]} 30...
Re5 {[%clk 0:00:16.2]} 31. a5 {[%clk 0:00:57.2]} 31... Ra8 {[%clk 0:00:15.4]}
32. Nxb7 {[%clk 0:00:56.6]} 32... Rb8 {[%clk 0:00:16.6]} 33. Nc5 {[%clk
0:00:47]} 33... Rb2+ {[%clk 0:00:16.1]} 34. Kd3 {[%clk 0:00:48.1]} 34... Rxg2
{[%clk 0:00:15.7]} 35. Ne4 {[%clk 0:00:45.3]} 35... Rxa5 {[%clk 0:00:15.8]} 36.
Rb1 {[%clk 0:00:31.4]} 36... c5 {[%clk 0:00:14.3]} 37. Rxc5 {[%clk 0:00:25.1]}
37... Rxc5 {[%clk 0:00:14.1]} 38. Nxc5 {[%clk 0:00:26.3]} 38... Rxg3 {[%clk
0:00:16]} 39. Rb6 {[%clk 0:00:21.5]} 39... h5 {[%clk 0:00:16.6]} 40. Ne4 {[%clk
0:00:22.9]} 40... Rg4 {[%clk 0:00:15.6]} 41. Kd4 {[%clk 0:00:24.2]} 41... h4
{[%clk 0:00:16.3]} 42. Ke5 {[%clk 0:00:25.5]} 42... h3 {[%clk 0:00:17.3]} 43.
Rb7+ {[%clk 0:00:26.9]} 43... Kg6 {[%clk 0:00:17.7]} 44. Rb6+ {[%clk 0:00:28]}
44... Kg7 {[%clk 0:00:18]} 45. Kf5 {[%clk 0:00:28.3]} 45... Rg2 {[%clk
0:00:17.9]} 46. Rb7+ {[%clk 0:00:27.3]} 46... Kf8 {[%clk 0:00:16.9]} 47. Kf6
{[%clk 0:00:25.9]} 47... Ke8 {[%clk 0:00:17]} 48. Nxg5 {[%clk 0:00:25]} 48... h2
{[%clk 0:00:16.8]} 49. Rh7 {[%clk 0:00:26.5]} 49... a5 {[%clk 0:00:17.9]} 50.
Ne6 {[%clk 0:00:26.9]} 50... Rf2+ {[%clk 0:00:17.2]} 51. Ke5 {[%clk 0:00:27.7]}
51... a4 {[%clk 0:00:17.7]} 52. Nc7+ {[%clk 0:00:28.4]} 52... Kf8 {[%clk
0:00:17.4]} 53. Nb5 {[%clk 0:00:28.2]} 53... Kg8 {[%clk 0:00:18.2]} 54. Rh3
{[%clk 0:00:28.2]} 54... Rb2 {[%clk 0:00:19.5]} 55. Na3 {[%clk 0:00:23.8]} 55...
Rb3 {[%clk 0:00:20.8]} 56. Nc4 {[%clk 0:00:24.7]} 56... Rc3 {[%clk 0:00:21.7]}
57. Kd4 {[%clk 0:00:25.7]} 57... Rc2 {[%clk 0:00:22.8]} 58. e4 {[%clk
0:00:24.4]} 58... Kf7 {[%clk 0:00:22.8]} 59. e5 {[%clk 0:00:23.5]} 59... Ke6
{[%clk 0:00:23.8]} 60. Rh6+ {[%clk 0:00:24.1]} 60... Ke7 {[%clk 0:00:23.1]} 61.
Kd5 {[%clk 0:00:23.7]} 61... Kf7 {[%clk 0:00:17.3]} 62. e6+ {[%clk 0:00:22.1]}
62... Kg7 {[%clk 0:00:18.4]} 63. Rh3 {[%clk 0:00:22.6]} 63... Re2 {[%clk
0:00:18.7]} 64. Ne5 {[%clk 0:00:19.5]} 64... a3 {[%clk 0:00:18.9]} 65. e7 {[%clk
0:00:18.9]} 65... Rxe5+ {[%clk 0:00:18.1]} 66. Kxe5 {[%clk 0:00:18.6]} 66... a2
{[%clk 0:00:20]} 67. e8=Q {[%clk 0:00:19.1]} 67... a1=Q+ {[%clk 0:00:21.1]} 68.
Kf4 {[%clk 0:00:16.5]} 68... Qf1+ {[%clk 0:00:21.7]} 69. Kg3 {[%clk 0:00:16.4]}
69... Qg1+ {[%clk 0:00:22.3]} 70. Kh4 {[%clk 0:00:16.7]} 70... h1=Q {[%clk
0:00:22.2]} 71. Qe5+ {[%clk 0:00:16.4]} 71... Kg6 {[%clk 0:00:23.1]} 72. Qe6+
{[%clk 0:00:13.4]} 72... Kg7 {[%clk 0:00:24.1]} 73. Qe7+ {[%clk 0:00:14.2]}
73... Kg8 {[%clk 0:00:24.2]} 74. Qe8+ {[%clk 0:00:15.2]} 74... Kg7 {[%clk
0:00:25.3]} 75. Qe7+ {[%clk 0:00:16.5]} 75... Kg8 {[%clk 0:00:26.6]} 76. Qe8+
{[%clk 0:00:15.7]} 76... Kg7 {[%clk 0:00:27.6]} 77. Qe7+ {[%clk 0:00:17.1]}
77... Kg8 {[%clk 0:00:28.7]} 78. Qe8+ {[%clk 0:00:17.2]} 78... Kg7 {[%clk
0:00:29.9]} 79. Qe7+ {[%clk 0:00:18.3]} 79... Kg8 {[%clk 0:00:25.9]} 1/2-1/2

[Event "*** Biggest EVER Titled Tuesday"]
[Site "Chess.com"]
[Date "2018.04.17"]
[Round "2"]
[White "GMVallejo"]
[Black "Witik"]
[Result "1-0"]
[WhiteElo "2770"]
[BlackElo "2596"]
[TimeControl "180+2"]
[EndTime "13:25:21 PDT"]
[Termination "GMVallejo won by resignation"]

1. Nf3 {[%clk 0:03:01.8]} 1... Nf6 {[%clk 0:03:00.2]} 2. c4 {[%clk 0:03:02.2]}
2... g6 {[%clk 0:02:58.6]} 3. Nc3 {[%clk 0:03:02.1]} 3... Bg7 {[%clk 0:02:59.7]}
4. g3 {[%clk 0:02:58.8]} 4... O-O {[%clk 0:02:53.7]} 5. Bg2 {[%clk 0:02:59.7]}
5... c6 {[%clk 0:02:54.1]} 6. e4 {[%clk 0:02:50.1]} 6... d5 {[%clk 0:02:54.9]}
7. cxd5 {[%clk 0:02:52]} 7... cxd5 {[%clk 0:02:55.9]} 8. e5 {[%clk 0:02:52.8]}
8... Ne4 {[%clk 0:02:56.8]} 9. O-O {[%clk 0:02:48.2]} 9... Nc6 {[%clk
0:02:56.5]} 10. d4 {[%clk 0:02:41]} 10... Bf5 {[%clk 0:02:37.8]} 11. Nh4 {[%clk
0:02:20.7]} 11... Nxc3 {[%clk 0:02:37.5]} 12. bxc3 {[%clk 0:02:22.6]} 12... Be6
{[%clk 0:02:38.7]} 13. f4 {[%clk 0:02:18.9]} 13... f6 {[%clk 0:02:23.6]} 14. Qe2
{[%clk 0:01:52.2]} 14... Qd7 {[%clk 0:02:19.1]} 15. Ba3 {[%clk 0:01:46.1]} 15...
f5 {[%clk 0:01:46.1]} 16. Nf3 {[%clk 0:01:45]} 16... h6 {[%clk 0:01:44]} 17. Nd2
{[%clk 0:01:26.5]} 17... Rac8 {[%clk 0:01:32]} 18. Rfc1 {[%clk 0:01:16.3]} 18...
Rc7 {[%clk 0:01:15.9]} 19. Qe3 {[%clk 0:00:50.1]} 19... Rfc8 {[%clk 0:01:13.1]}
20. Bf1 {[%clk 0:00:51.3]} 20... Bf7 {[%clk 0:00:49.3]} 21. Nb3 {[%clk
0:00:50.5]} 21... b6 {[%clk 0:00:50]} 22. Ba6 {[%clk 0:00:50.8]} 22... Rd8
{[%clk 0:00:51.1]} 23. Re1 {[%clk 0:00:47.1]} 23... Be6 {[%clk 0:00:43]} 24. Bb5
{[%clk 0:00:42.9]} 24... Qc8 {[%clk 0:00:42.9]} 25. Rac1 {[%clk 0:00:39.8]}
25... Kh7 {[%clk 0:00:37.2]} 26. Bxc6 {[%clk 0:00:36.4]} 26... Rxc6 {[%clk
0:00:38.1]} 27. Bxe7 {[%clk 0:00:37.7]} 27... Rd7 {[%clk 0:00:37.9]} 28. Bd6
{[%clk 0:00:34.5]} 28... Bf8 {[%clk 0:00:38.9]} 29. Bxf8 {[%clk 0:00:31.7]}
29... Qxf8 {[%clk 0:00:40.8]} 30. Qd2 {[%clk 0:00:26.9]} 30... Qa3 {[%clk
0:00:41.9]} 31. Re3 {[%clk 0:00:26]} 31... Rdc7 {[%clk 0:00:42.8]} 32. Kf2
{[%clk 0:00:26.2]} 32... a5 {[%clk 0:00:43.7]} 33. Rc2 {[%clk 0:00:26.4]} 33...
Bc8 {[%clk 0:00:39.1]} 34. Nc1 {[%clk 0:00:24.4]} 34... Be6 {[%clk 0:00:36.4]}
35. Ne2 {[%clk 0:00:24.6]} 35... b5 {[%clk 0:00:35.7]} 36. Rb2 {[%clk
0:00:19.9]} 36... Qa4 {[%clk 0:00:34.7]} 37. Qc2 {[%clk 0:00:18.7]} 37... Qxc2
{[%clk 0:00:34.5]} 38. Rxc2 {[%clk 0:00:20.6]} 38... b4 {[%clk 0:00:36.4]} 39.
Ke1 {[%clk 0:00:19.7]} 39... Rc4 {[%clk 0:00:36.3]} 40. Kd2 {[%clk 0:00:19.8]}
40... a4 {[%clk 0:00:37.7]} 41. Rc1 {[%clk 0:00:20.2]} 41... b3 {[%clk
0:00:36.6]} 42. axb3 {[%clk 0:00:20.8]} 42... axb3 {[%clk 0:00:38.5]} 43. Ra1
{[%clk 0:00:21.1]} 43... Rb7 {[%clk 0:00:37.2]} 44. Rf3 {[%clk 0:00:21]} 44...
Bd7 {[%clk 0:00:27.6]} 45. Rff1 {[%clk 0:00:20.7]} 45... b2 {[%clk 0:00:27]} 46.
Rab1 {[%clk 0:00:19.9]} 46... Ra4 {[%clk 0:00:26]} 47. Rfe1 {[%clk 0:00:15]}
47... Ra3 {[%clk 0:00:15.3]} 48. Ng1 {[%clk 0:00:14.6]} 48... Be6 {[%clk
0:00:13.2]} 49. Kc2 {[%clk 0:00:14.7]} 49... Bd7 {[%clk 0:00:14]} 50. e6 {[%clk
0:00:15]} 50... Ba4+ {[%clk 0:00:14.8]} 51. Kd2 {[%clk 0:00:16]} 51... Rab3
{[%clk 0:00:11.5]} 52. Nf3 {[%clk 0:00:13.9]} 52... Kg7 {[%clk 0:00:12.7]} 53.
e7 {[%clk 0:00:12.3]} 53... Be8 {[%clk 0:00:12.3]} 54. Ne5 {[%clk 0:00:10.7]}
54... Kf6 {[%clk 0:00:13.5]} 55. Nd3 {[%clk 0:00:11.5]} 55... Rxe7 {[%clk
0:00:14.2]} 56. Rxe7 {[%clk 0:00:11.8]} 56... Kxe7 {[%clk 0:00:16.1]} 57. Rxb2
{[%clk 0:00:12.9]} 57... Rxb2+ {[%clk 0:00:17.5]} 58. Nxb2 {[%clk 0:00:14.8]}
58... Bb5 {[%clk 0:00:19.3]} 59. Nd3 {[%clk 0:00:15.5]} 59... Kd6 {[%clk
0:00:19.4]} 60. Ne5 {[%clk 0:00:16.3]} 60... Be8 {[%clk 0:00:20.9]} 61. h4
{[%clk 0:00:16.2]} 61... Ke6 {[%clk 0:00:21.5]} 62. Kc2 {[%clk 0:00:17.2]} 62...
Kf6 {[%clk 0:00:20.9]} 63. Kb3 {[%clk 0:00:18.1]} 63... g5 {[%clk 0:00:22.8]}
64. Kb4 {[%clk 0:00:18.9]} 64... gxh4 {[%clk 0:00:24.3]} 65. gxh4 {[%clk
0:00:20.6]} 65... Ke6 {[%clk 0:00:25.7]} 66. Kc5 {[%clk 0:00:21.7]} 66... Bh5
{[%clk 0:00:26]} 67. c4 {[%clk 0:00:22.4]} 67... dxc4 {[%clk 0:00:27.2]} 68. d5+
{[%clk 0:00:23.8]} 68... Ke7 {[%clk 0:00:27.9]} 69. Nxc4 {[%clk 0:00:24.3]}
69... Bf7 {[%clk 0:00:28]} 70. Ne5 {[%clk 0:00:24.4]} 70... Be8 {[%clk 0:00:29]}
71. d6+ {[%clk 0:00:21.4]} 71... Ke6 {[%clk 0:00:29.9]} 72. d7 {[%clk
0:00:21.8]} 72... Bxd7 {[%clk 0:00:30.6]} 73. Nxd7 {[%clk 0:00:23.6]} 73... Kxd7
{[%clk 0:00:31.4]} 74. Kd5 {[%clk 0:00:24.9]} 74... Ke7 {[%clk 0:00:32.7]} 75.
Ke5 {[%clk 0:00:25.8]} 75... Kf7 {[%clk 0:00:32.4]} 76. Kxf5 {[%clk 0:00:27]}
1-0

[Event "*** Biggest EVER Titled Tuesday"]
[Site "Chess.com"]
[Date "2018.04.17"]
[Round "2"]
[White "Matibar"]
[Black "sergiochess83"]
[Result "0-1"]
[WhiteElo "2576"]
[BlackElo "2776"]
[TimeControl "180+2"]
[EndTime "13:25:27 PDT"]
[Termination "sergiochess83 won by checkmate"]

1. e4 {[%clk 0:03:01.9]} 1... c6 {[%clk 0:02:56.4]} 2. d4 {[%clk 0:02:58.8]}
2... d5 {[%clk 0:02:57.3]} 3. e5 {[%clk 0:02:58.5]} 3... Bf5 {[%clk 0:02:57.5]}
4. Nf3 {[%clk 0:02:54.9]} 4... e6 {[%clk 0:02:58.1]} 5. Be2 {[%clk 0:02:55.9]}
5... Ne7 {[%clk 0:02:58.6]} 6. O-O {[%clk 0:02:51.9]} 6... Bg6 {[%clk
0:02:59.2]} 7. a4 {[%clk 0:02:52.1]} 7... c5 {[%clk 0:02:56]} 8. dxc5 {[%clk
0:02:50.5]} 8... Nd7 {[%clk 0:02:54.3]} 9. b4 {[%clk 0:02:40.5]} 9... a5 {[%clk
0:02:47.7]} 10. c3 {[%clk 0:02:41.6]} 10... Nc6 {[%clk 0:02:45.4]} 11. Qb3
{[%clk 0:02:31.8]} 11... Ncxe5 {[%clk 0:02:41.2]} 12. Nxe5 {[%clk 0:02:32]}
12... Nxe5 {[%clk 0:02:43.1]} 13. Bb5+ {[%clk 0:02:32]} 13... Nc6 {[%clk
0:02:41.3]} 14. Bb2 {[%clk 0:02:12.8]} 14... Be7 {[%clk 0:02:38]} 15. Nd2 {[%clk
0:02:01.9]} 15... O-O {[%clk 0:02:37.6]} 16. Nf3 {[%clk 0:02:02.8]} 16... Bf6
{[%clk 0:02:29.6]} 17. Rfe1 {[%clk 0:01:59.2]} 17... Qc7 {[%clk 0:02:28]} 18.
Be2 {[%clk 0:01:35.3]} 18... Rfd8 {[%clk 0:02:16.3]} 19. Rad1 {[%clk 0:01:33.6]}
19... h6 {[%clk 0:02:13]} 20. Ba3 {[%clk 0:01:34.4]} 20... Rac8 {[%clk
0:01:38.8]} 21. g3 {[%clk 0:01:19.6]} 21... Be4 {[%clk 0:01:30.1]} 22. Nd2
{[%clk 0:01:15.3]} 22... Bf5 {[%clk 0:01:22.9]} 23. Nf1 {[%clk 0:01:11.3]} 23...
axb4 {[%clk 0:01:19.3]} 24. cxb4 {[%clk 0:01:10.1]} 24... Nd4 {[%clk 0:01:20.4]}
25. Rxd4 {[%clk 0:01:01.3]} 25... Bxd4 {[%clk 0:01:20.9]} 26. a5 {[%clk
0:01:02.7]} 26... e5 {[%clk 0:01:13.6]} 27. Ne3 {[%clk 0:01:01.7]} 27... Bxe3
{[%clk 0:01:13.3]} 28. fxe3 {[%clk 0:01:00.7]} 28... d4 {[%clk 0:01:11.1]} 29.
Bc4 {[%clk 0:01:01.2]} 29... Bg6 {[%clk 0:00:52.1]} 30. e4 {[%clk 0:00:57.3]}
30... Kh7 {[%clk 0:00:31.5]} 31. Bd3 {[%clk 0:00:53.8]} 31... Rf8 {[%clk
0:00:17.6]} 32. Rf1 {[%clk 0:00:54.8]} 32... f6 {[%clk 0:00:18.6]} 33. Bc1
{[%clk 0:00:52.1]} 33... Bf7 {[%clk 0:00:18.7]} 34. Qd1 {[%clk 0:00:51.2]} 34...
Qd7 {[%clk 0:00:18.8]} 35. Qe2 {[%clk 0:00:51.1]} 35... Qa4 {[%clk 0:00:17.7]}
36. Bd2 {[%clk 0:00:51.9]} 36... Qb3 {[%clk 0:00:19]} 37. Rb1 {[%clk 0:00:52.5]}
37... Qa2 {[%clk 0:00:19.8]} 38. Qd1 {[%clk 0:00:51.5]} 38... Rfe8 {[%clk
0:00:19.2]} 39. Ra1 {[%clk 0:00:47.4]} 39... Qe6 {[%clk 0:00:18.7]} 40. Qe2
{[%clk 0:00:45.1]} 40... Bg6 {[%clk 0:00:19.5]} 41. a6 {[%clk 0:00:45]} 41...
bxa6 {[%clk 0:00:18.9]} 42. Rxa6 {[%clk 0:00:46.9]} 42... Qb3 {[%clk 0:00:19]}
43. h4 {[%clk 0:00:42.9]} 43... h5 {[%clk 0:00:17.1]} 44. c6 {[%clk 0:00:39.5]}
44... Ra8 {[%clk 0:00:17.8]} 45. Rxa8 {[%clk 0:00:37.9]} 45... Rxa8 {[%clk
0:00:18.3]} 46. b5 {[%clk 0:00:38.6]} 46... Bf7 {[%clk 0:00:08.9]} 47. c7 {[%clk
0:00:27.8]} 47... Kg8 {[%clk 0:00:07.4]} 48. Ba5 {[%clk 0:00:26.7]} 48... Be6
{[%clk 0:00:06.7]} 49. Qc2 {[%clk 0:00:13.7]} 49... Qxc2 {[%clk 0:00:06.3]} 50.
Bxc2 {[%clk 0:00:14.7]} 50... Rxa5 {[%clk 0:00:05.7]} 51. Bb3 {[%clk 0:00:15.5]}
51... Bxb3 {[%clk 0:00:04.1]} 52. c8=Q+ {[%clk 0:00:16.8]} 52... Kh7 {[%clk
0:00:06]} 53. b6 {[%clk 0:00:16.2]} 53... d3 {[%clk 0:00:05.6]} 54. b7 {[%clk
0:00:16.1]} 54... d2 {[%clk 0:00:06.5]} 55. Qd8 {[%clk 0:00:12.4]} 55... d1=Q+
{[%clk 0:00:07.2]} 56. Qxd1 {[%clk 0:00:12.9]} 56... Bxd1 {[%clk 0:00:09.1]} 57.
b8=Q {[%clk 0:00:14.7]} 57... Bg4 {[%clk 0:00:09.4]} 58. Qb4 {[%clk 0:00:14.9]}
58... Ra1+ {[%clk 0:00:09.7]} 59. Kf2 {[%clk 0:00:16.2]} 59... Ra2+ {[%clk
0:00:11.6]} 60. Ke3 {[%clk 0:00:16.4]} 60... Re2+ {[%clk 0:00:12.4]} 61. Kd3
{[%clk 0:00:17.7]} 61... Rg2 {[%clk 0:00:14.1]} 62. Qe1 {[%clk 0:00:18.8]} 62...
Re2 {[%clk 0:00:14.1]} 63. Qf1 {[%clk 0:00:16.5]} 63... Ra2 {[%clk 0:00:13.4]}
64. Qg1 {[%clk 0:00:17.1]} 64... Ra4 {[%clk 0:00:13.2]} 65. Qf1 {[%clk
0:00:16.8]} 65... Ra3+ {[%clk 0:00:13]} 66. Kc4 {[%clk 0:00:17]} 66... Rxg3
{[%clk 0:00:14]} 67. Kc5 {[%clk 0:00:17.9]} 67... Re3 {[%clk 0:00:12.4]} 68. Qc4
{[%clk 0:00:18.5]} 68... Bf3 {[%clk 0:00:11.4]} 69. Kd6 {[%clk 0:00:19.3]} 69...
Bxe4 {[%clk 0:00:09.2]} 70. Ke7 {[%clk 0:00:19.8]} 70... Bf5 {[%clk 0:00:07]}
71. Kf8 {[%clk 0:00:20.8]} 71... Rg3 {[%clk 0:00:07.9]} 72. Qg8+ {[%clk
0:00:21.6]} 72... Kh6 {[%clk 0:00:08.5]} 73. Qf7 {[%clk 0:00:21.4]} 73... e4
{[%clk 0:00:07.7]} 74. Qc7 {[%clk 0:00:21.2]} 74... Rg4 {[%clk 0:00:08]} 75. Qh2
{[%clk 0:00:21.4]} 75... e3 {[%clk 0:00:06.6]} 76. Qe2 {[%clk 0:00:22.5]} 76...
Re4 {[%clk 0:00:06.9]} 77. Qg2 {[%clk 0:00:23.7]} 77... Bg6 {[%clk 0:00:07.5]}
78. Qe2 {[%clk 0:00:21.3]} 78... Re8# {[%clk 0:00:08.1]} 0-1